bitfinex/quotes_ETHUSD_20251124
["timestamp","ask_amount","ask_price","bid_price","bid_amount"]
[1763997409850,0.405504,2833.6,2833.3,0.001]
[1763997410054,0.405504,2833.4,2833.3,0.001]
[1763997410239,0.32466925,2833.4,2833.3,0.001]
[1763997410554,1.22767325,2833.4,2833.3,0.001]
[1763997410736,1.46167325,2833.4,2833.3,0.001]
[1763997411772,0.32466925,2833.4,2833.3,0.001]
[1763997412081,0.234,2833.4,2833.3,0.001]
[1763997412388,0.7315,2833.4,2833.3,0.001]
[1763997412538,1.05616925,2833.4,2833.3,0.001]
[1763997412738,0.82216925,2833.4,2833.3,0.001]
[1763997412982,0.234,2833.4,2833.3,0.001]
[1763997413185,0.7315,2833.4,2833.3,0.001]
[1763997413359,0.234,2833.4,2833.3,0.001]
[1763997413761,0.7315,2833.4,2833.3,0.001]
[1763997414088,1.137004,2833.4,2833.3,0.001]
[1763997414700,0.405504,2832.9,2830.9,0.5801]
[1763997414924,0.405504,2832.7,2830.9,0.4801]
[1763997415205,0.405504,2832.5,2830.4,0.4801]
[1763997415481,0.405504,2832.3,2830.4,0.4801]
[1763997415693,0.234,2832.2,2830.9,0.4801]
[1763997416047,0.4975,2832.6,2830.9,0.4801]
[1763997416250,0.639504,2832.5,2830.9,0.4801]
[1763997416683,0.4975,2832.4,2830.8,0.1955]
[1763997416874,0.72559411,2832.9,2830.9,0.51542445]
[1763997417073,7.49698575,2833.5,2831.0,0.42433813]
[1763997417074,0.7315,2832.8,2831.0,0.42433813]
[1763997417388,0.4975,2832.8,2831.2,2.68]
[1763997417551,0.234,2832.7,2831.5,0.1]
[1763997417755,0.234,2832.6,2831.5,0.1]
[1763997418084,0.234,2832.6,2831.5,0.5801]
[1763997418285,0.4975,2833.3,2831.5,0.5801]
[1763997418488,0.234,2833.2,2832.2,0.1]
[1763997418851,0.234,2833.7,2832.3,0.4801]
[1763997419278,0.7315,2833.7,2832.3,0.4801]
[1763997420107,0.4975,2833.7,2832.4,0.1]
[1763997420256,0.4975,2834.2,2832.7,0.1]
[1763997420670,0.234,2834.1,2832.8,0.161]
[1763997421196,0.4975,2834.0,2832.8,0.161]
[1763997421690,0.4975,2834.0,2831.8,0.161]
[1763997421871,0.639504,2833.9,2832.3,0.1]
[1763997422067,0.639504,2833.9,2832.0,0.82559411]
[1763997422280,0.405504,2833.7,2832.1,1.31235799]
[1763997422670,0.405504,2833.7,2832.3,0.1]
[1763997422671,0.234,2833.6,2832.3,0.1]
[1763997422893,0.404704,2833.7,2832.3,0.1]
[1763997423094,0.7315,2833.6,2832.2,0.4801]
[1763997423416,0.4975,2834.2,2832.4,0.1]
[1763997423577,0.234,2834.1,2832.3,0.405504]
[1763997423775,0.234,2834.1,2832.7,0.1]
[1763997423980,0.4975,2834.0,2832.6,0.001]
[1763997424719,2.11167,2833.5,2832.6,0.001]
[1763997424904,0.405504,2833.3,2832.6,0.001]
[1763997425284,0.4975,2833.2,2832.6,0.001]
[1763997425528,0.4975,2834.2,2832.6,0.001]
[1763997425727,0.234,2834.3,2833.2,0.1]
[1763997426023,0.4975,2835.1,2833.2,0.1]
[1763997426183,0.4975,2835.1,2833.5,0.1]
[1763997426383,0.4975,2835.1,2833.6,0.4801]
[1763997426590,0.234,2835.0,2833.8,0.1]
[1763997426786,0.18447864,2835.8,2833.8,0.1]
[1763997427097,0.234,2835.5,2833.9,0.4801]
[1763997427282,0.405504,2835.4,2833.7,0.1343]
[1763997427489,0.32451558,2835.3,2833.7,0.6144]
[1763997427706,0.4975,2835.4,2833.7,0.7144]
[1763997427893,0.4975,2835.3,2833.7,0.2343]
[1763997428123,0.234,2835.2,2833.8,0.4801]
[1763997428556,0.4975,2835.1,2833.8,0.4801]
[1763997429011,0.234,2835.0,2833.8,0.5801]
[1763997429209,0.4975,2835.5,2833.8,0.5801]
[1763997429411,0.19,2835.6,2834.1,0.1]
[1763997429666,0.1957,2837.0,2833.8,0.4801]
[1763997429667,0.4975,2835.9,2834.4,0.1]
[1763997429813,0.234,2835.8,2834.4,0.1]
[1763997430173,0.405504,2835.7,2834.2,0.4801]
[1763997430467,1.13109811,2835.5,2833.7,0.2343]
[1763997430664,0.32558765,2835.6,2833.7,0.6144]
[1763997430665,0.234,2835.4,2833.7,0.6144]
[1763997430813,0.234,2835.4,2833.9,0.1]
[1763997431013,0.7315,2835.4,2833.9,0.1]
[1763997431263,0.405504,2835.3,2833.8,0.4801]
[1763997431557,1.22889486,2835.3,2833.8,0.4801]
[1763997431712,0.32589086,2835.2,2833.7,0.1343]
[1763997431915,0.405504,2835.1,2833.7,0.1343]
[1763997432257,0.405504,2834.9,2833.4,0.1343]
[1763997432567,0.405504,2834.7,2833.4,0.1343]
[1763997432841,1.05743851,2834.8,2832.4,0.96059411]
[1763997432842,0.32593851,2834.6,2833.1,0.1343]
[1763997433010,0.1937,2834.6,2833.1,0.1343]
[1763997433206,0.4975,2834.5,2833.1,0.1343]
[1763997433462,0.4975,2835.0,2833.4,0.405504]
[1763997433747,0.56092355,2834.9,2833.7,0.1]
[1763997433934,0.56092355,2834.9,2833.7,0.5801]
[1763997434258,0.234,2834.8,2833.7,0.4801]
[1763997434448,0.234,2834.8,2833.1,0.1343]
[1763997434748,0.4975,2834.8,2833.3,0.1]
[1763997434921,0.56092355,2834.7,2833.6,0.1]
[1763997435122,0.405504,2835.2,2833.6,0.1]
[1763997435324,0.4975,2835.0,2833.6,0.5801]
[1763997435569,0.56151625,2834.9,2833.9,0.1]
[1763997435771,0.32751625,2834.8,2833.9,0.1]
[1763997435972,0.4975,2835.4,2834.0,0.4801]
[1763997435973,0.234,2835.0,2834.0,0.4801]
[1763997436703,0.56197036,2835.0,2834.0,0.4801]
[1763997436888,0.32797036,2834.9,2834.0,0.4801]
[1763997437087,0.234,2835.0,2834.0,0.4801]
[1763997437300,0.234,2834.9,2834.0,0.4801]
[1763997437506,0.32797036,2835.1,2834.0,0.4801]
[1763997437687,0.234,2835.0,2834.2,0.1]
[1763997437891,0.234,2835.0,2834.0,0.4801]
[1763997437892,0.32797036,2835.2,2834.9,0.1903]
[1763997438210,0.56197036,2835.6,2834.9,0.1903]
[1763997438414,0.32791894,2835.5,2834.7,0.4801]
[1763997438568,0.234,2835.7,2834.8,0.1]
[1763997439089,0.7315,2835.7,2834.6,0.1903]
[1763997439313,0.32791894,2835.6,2834.6,0.1903]
[1763997439734,0.78461894,2835.6,2834.6,0.1903]
[1763997440028,0.32791894,2835.5,2834.3,0.1838]
[1763997440323,0.4567,2835.4,2834.3,0.1838]
[1763997440522,0.32791894,2835.3,2834.3,0.1838]
[1763997440710,0.32791894,2835.3,2834.3,0.6688]
[1763997441097,0.78461894,2835.3,2834.0,0.1838]
[1763997441399,0.405504,2835.1,2833.4,0.1]
[1763997441598,0.405504,2834.9,2833.4,0.1]
[1763997441804,0.32791894,2834.8,2833.3,0.485]
[1763997442005,0.234,2834.7,2833.3,0.485]
[1763997442207,2.86370994,2834.6,2832.6,0.486]
[1763997442406,1.14005993,2834.5,2832.6,0.486]
[1763997442731,0.56191894,2834.4,2832.8,0.1]
[1763997442896,0.56191894,2834.4,2832.6,0.486]
[1763997442897,0.78461894,2834.3,2832.6,0.486]
[1763997443225,0.4567,2834.3,2832.6,0.486]
[1763997443431,0.4567,2834.2,2832.6,0.486]
[1763997443811,0.405504,2834.1,2832.6,0.486]
[1763997444009,0.405504,2834.1,2832.6,0.001]
[1763997444326,0.405504,2833.9,2832.6,0.001]
[1763997444835,0.405504,2833.7,2832.6,0.001]
[1763997445220,0.4567,2833.6,2832.6,0.001]
[1763997445634,0.405504,2833.5,2832.6,0.001]
[1763997445842,0.234,2833.4,2832.6,0.001]
[1763997446038,0.405504,2833.3,2832.6,0.001]
[1763997446338,0.181,2832.7,2832.6,0.001]
[1763997446841,0.8709,2832.7,2832.6,0.001]
[1763997447043,0.234,2832.7,2832.6,0.001]
[1763997447216,0.181,2833.3,2832.6,0.001]
[1763997447217,0.234,2833.3,2832.6,0.001]
[1763997447416,0.6377,2833.8,2832.7,0.485]
[1763997447616,0.234,2833.7,2832.7,0.485]
[1763997448001,0.6377,2833.8,2832.7,0.485]
[1763997448231,0.234,2833.7,2832.7,0.485]
[1763997448553,0.4567,2833.9,2832.7,0.485]
[1763997448712,0.4567,2834.5,2832.7,0.485]
[1763997448896,0.4567,2834.5,2832.9,0.1]
[1763997449099,0.234,2834.4,2833.3,0.1]
[1763997449300,0.234,2834.4,2832.8,0.405504]
[1763997449301,0.181,2834.8,2832.8,7.81364971]
[1763997449525,0.234,2835.2,2833.5,0.405504]
[1763997449725,0.6907,2835.2,2833.5,0.405504]
[1763997449938,0.6907,2835.2,2833.6,0.731]
[1763997450116,0.4567,2835.1,2833.7,0.1]
[1763997450311,0.4567,2835.1,2833.7,0.585]
[1763997450913,0.234,2835.0,2833.7,0.585]
[1763997451428,0.181,2834.9,2833.7,0.585]
[1763997451628,0.4567,2835.1,2833.7,0.585]
[1763997451839,0.181,2835.4,2834.1,0.1]
[1763997452151,0.234,2835.0,2834.1,0.1]
[1763997452319,0.234,2835.0,2834.2,0.1838]
[1763997452703,0.002,2835.6,2834.2,0.1838]
[1763997452903,0.002,2835.6,2835.5,0.161]
[1763997453444,0.002,2835.6,2835.0,0.485]
[1763997453757,0.002,2835.6,2834.4,1.13109811]
[1763997453758,0.002,2835.6,2835.2,0.161]
[1763997453937,0.4567,2835.5,2834.5,0.485]
[1763997454246,0.234,2835.4,2834.5,0.485]
[1763997454473,0.234,2835.4,2834.2,0.6688]
[1763997454851,0.234,2835.4,2834.4,0.1]
[1763997455332,0.002,2835.6,2834.4,0.1]
[1763997455536,0.234,2835.5,2834.5,0.485]
[1763997455768,0.234,2835.5,2834.2,0.1838]
[1763997455989,0.6907,2835.5,2834.2,0.1838]
[1763997456998,0.4567,2835.4,2834.2,0.1838]
[1763997457789,0.002,2835.6,2834.4,0.1]
[1763997457995,0.002,2835.6,2834.7,0.1]
[1763997458136,0.002,2835.6,2834.4,0.1]
[1763997458541,0.4587,2835.6,2834.4,0.1]
[1763997458781,0.4587,2835.6,2834.3,0.30754]
[1763997459277,0.405504,2835.5,2833.6,0.146]
[1763997459574,0.405504,2835.3,2833.7,0.1]
[1763997459991,0.405504,2835.1,2833.0,0.161]
[1763997460340,0.405504,2834.9,2833.4,0.1]
[1763997460548,0.405504,2834.9,2833.2,0.1]
[1763997460759,0.405504,2834.9,2833.0,0.161]
[1763997460760,0.6377,2834.8,2833.4,0.1]
[1763997460938,0.6377,2834.8,2833.1,0.4485]
[1763997461150,0.6377,2834.8,2833.6,0.001]
[1763997461151,0.4567,2834.7,2833.6,0.001]
[1763997461891,0.405504,2834.6,2833.6,0.001]
[1763997462041,0.181,2833.7,2833.6,0.001]
[1763997462552,0.414,2833.9,2833.6,0.001]
[1763997462886,0.181,2834.1,2833.6,0.001]
[1763997463095,0.233,2834.0,2833.6,0.001]
[1763997463767,0.6897,2834.0,2833.6,0.001]
[1763997463984,0.181,2834.8,2833.6,0.4495]
[1763997464290,0.233,2834.7,2833.6,0.001]
[1763997464641,0.4567,2834.6,2833.6,0.001]
[1763997465069,0.405504,2834.5,2833.6,0.001]
[1763997465381,0.181,2833.7,2833.6,0.001]
[1763997465550,0.233,2833.9,2833.6,0.001]
[1763997466772,0.233,2834.1,2833.6,0.001]
[1763997466974,0.4567,2834.9,2833.6,0.001]
[1763997467274,0.1992,2834.9,2833.6,0.001]
[1763997467475,0.4541,2834.8,2833.6,0.001]
[1763997467850,0.4541,2834.8,2833.6,0.101]
[1763997468071,0.233,2834.8,2833.6,0.5495]
[1763997468661,0.4541,2834.7,2833.6,0.001]
[1763997468848,0.233,2834.8,2833.7,0.5485]
[1763997469043,0.233,2834.8,2833.6,0.001]
[1763997469044,0.405504,2834.7,2833.6,0.001]
[1763997469476,0.405504,2834.5,2833.6,0.001]
[1763997469997,0.405504,2834.3,2833.6,0.001]
[1763997470151,0.1853,2833.7,2833.6,0.001]
[1763997470579,0.6514,2833.7,2833.6,0.001]
[1763997470952,0.6514,2833.7,2833.4,0.001]
[1763997471143,0.4661,2833.6,2833.4,0.001]
[1763997471343,0.233,2833.5,2833.4,0.001]
[1763997471755,0.6991,2833.5,2833.4,0.001]
[1763997472279,1.104604,2833.5,2833.4,0.001]
[1763997473251,0.1853,2833.7,2833.4,0.001]
[1763997473541,0.233,2833.6,2833.4,0.001]
[1763997475505,0.6991,2833.6,2833.4,0.001]
[1763997475920,0.405504,2832.6,2832.4,0.001]
[1763997476118,1.104604,2832.5,2832.4,0.001]
[1763997476354,1.30615381,2832.5,2832.4,0.001]
[1763997476708,0.90064981,2832.5,2832.4,0.001]
[1763997476948,0.233,2832.5,2832.4,0.001]
[1763997477145,0.6991,2832.5,2832.4,0.001]
[1763997477873,0.4661,2833.1,2832.4,0.001]
[1763997478029,0.233,2833.0,2832.4,0.001]
[1763997478230,0.405504,2832.9,2832.4,0.001]
[1763997478446,0.233,2832.8,2832.4,0.03630574]
[1763997478652,0.233,2832.8,2832.4,0.001]
[1763997478862,0.6991,2832.8,2832.4,0.001]
[1763997479169,0.4661,2833.2,2832.4,0.001]
[1763997479370,0.233,2832.7,2832.4,0.001]
[1763997479585,0.233,2832.6,2832.4,0.001]
[1763997480800,0.1853,2833.5,2832.4,0.03630574]
[1763997480942,0.1853,2833.5,2832.5,0.4525]
[1763997481287,0.233,2833.4,2832.4,0.001]
[1763997481436,0.1853,2834.1,2832.5,0.4525]
[1763997481642,0.6991,2834.0,2832.5,0.4525]
[1763997481839,0.93942662,2834.1,2832.6,0.505504]
[1763997482154,0.6991,2834.0,2832.5,0.4525]
[1763997482351,0.6991,2834.0,2832.4,0.001]
[1763997482555,1.13109811,2833.6,2832.4,0.001]
[1763997482855,0.405504,2833.4,2832.4,0.001]
[1763997483266,0.590804,2832.5,2832.3,0.001]
[1763997483483,0.590804,2832.5,2832.1,0.001]
[1763997483484,0.405504,2832.3,2832.1,0.001]
[1763997483666,0.405504,2831.8,2829.8,0.261]
[1763997483987,1.13109811,2831.2,2829.3,0.4565]
[1763997484189,1.13167372,2831.9,2828.9,0.5565]
[1763997484190,1.13109811,2830.7,2828.9,0.5565]
[1763997484579,0.4661,2830.6,2828.9,0.4565]
[1763997484816,1.15116497,2831.1,2828.9,0.4565]
[1763997484817,0.91816497,2831.1,2829.0,0.13534817]
[1763997485017,0.91816497,2831.1,2828.9,0.4565]
[1763997485018,0.638504,2831.0,2829.6,0.1]
[1763997485325,0.233,2830.9,2829.6,0.1]
[1763997485486,0.6514,2831.1,2829.6,0.1]
[1763997485719,0.1853,2831.1,2829.7,0.4565]
[1763997486025,0.871604,2831.5,2830.1,0.1]
[1763997486026,0.233,2831.0,2830.1,0.1]
[1763997486225,0.1853,2831.3,2830.1,0.1]
[1763997486522,0.233,2830.9,2829.8,0.1]
[1763997486880,0.1853,2831.9,2830.8,0.163]
[1763997487074,0.233,2831.8,2830.8,0.163]
[1763997487617,0.6991,2831.8,2830.5,0.163]
[1763997487824,0.405504,2831.7,2830.5,0.163]
[1763997487989,0.871604,2831.7,2830.2,0.163]
[1763997488322,0.405504,2831.4,2830.2,0.163]
[1763997488523,0.45657021,2831.6,2829.9,0.4565]
[1763997488524,0.405504,2831.5,2829.9,0.4565]
[1763997488812,0.1853,2831.3,2829.9,0.5565]
[1763997489175,0.6514,2831.3,2829.9,0.5565]
[1763997489374,0.405504,2831.2,2829.9,0.4565]
[1763997489613,0.871604,2831.2,2829.9,0.4565]
[1763997490113,0.4661,2831.1,2829.5,0.5565]
[1763997490320,0.233,2831.0,2829.5,0.5565]
[1763997490520,0.233,2831.0,2829.7,0.1]
[1763997490817,0.1853,2831.3,2829.9,0.1]
[1763997491119,0.233,2831.6,2830.9,0.163]
[1763997491321,0.1853,2832.3,2831.5,0.1544]
[1763997491473,0.233,2832.2,2831.0,0.4565]
[1763997491679,0.233,2832.2,2830.9,0.163]
[1763997491986,6.1975516,2833.5,2831.0,0.4918232]
[1763997492186,12.171534,2832.9,2831.0,0.4565]
[1763997492397,0.4661,2833.0,2831.1,0.1]
[1763997492612,0.4661,2832.9,2831.1,0.1]
[1763997492823,0.405504,2832.8,2831.1,0.5565]
[1763997492984,0.4661,2832.9,2831.1,0.5565]
[1763997493188,0.4661,2832.8,2831.1,0.5565]
[1763997493414,0.4661,2832.8,2831.1,0.4565]
[1763997493610,0.4661,2832.8,2830.9,0.163]
[1763997493611,6.1975516,2832.5,2830.9,0.163]
[1763997493810,1.02525916,2832.4,2831.0,0.4565]
[1763997494023,0.233,2832.3,2831.2,0.1]
[1763997494620,0.233,2832.3,2831.1,0.4573]
[1763997494925,0.233,2832.2,2831.1,0.5573]
[1763997495132,0.233,2832.2,2830.9,0.163]
[1763997495286,0.405504,2832.1,2830.9,0.163]
[1763997495948,0.405504,2831.9,2830.3,0.4573]
[1763997496122,0.405504,2831.7,2829.0,6.1975516]
[1763997496289,0.72559411,2831.8,2829.3,0.1]
[1763997496290,0.1853,2830.4,2829.3,0.1]
[1763997496487,0.233,2830.3,2829.3,0.1]
[1763997497246,0.233,2830.2,2829.3,0.1]
[1763997497622,0.1853,2830.7,2829.2,0.4573]
[1763997497825,0.233,2830.6,2829.3,0.1]
[1763997498197,0.233,2830.6,2829.5,0.1]
[1763997498496,0.1853,2830.7,2829.5,0.1]
[1763997498842,0.233,2830.6,2829.5,0.1]
[1763997499140,0.1853,2830.7,2829.5,0.1]
[1763997499340,0.233,2830.6,2829.6,0.4573]
[1763997499579,0.1829,2831.0,2829.6,0.4573]
[1763997499756,0.1829,2831.0,2829.8,0.1]
[1763997500082,0.233,2830.9,2829.8,0.1]
[1763997500273,0.233,2830.9,2829.8,0.5553]
[1763997500494,0.233,2830.9,2829.5,0.4553]
[1763997500639,0.863904,2830.8,2829.1,0.1]
[1763997500824,0.863904,2830.8,2829.0,0.4553]
[1763997501022,0.863904,2830.8,2829.3,0.1]
[1763997501246,0.4584,2830.7,2829.3,0.1]
[1763997501483,0.4584,2830.7,2829.0,0.4553]
[1763997501484,0.638504,2830.6,2829.0,0.5553]
[1763997501776,0.1829,2831.3,2829.1,0.49064693]
[1763997501927,0.4584,2830.8,2829.4,0.1]
[1763997502534,0.4584,2830.8,2829.4,0.5553]
[1763997502860,0.233,2830.7,2829.7,0.1]
[1763997503233,0.233,2830.7,2830.0,0.1]
[1763997503426,0.233,2830.7,2829.8,0.5553]
[1763997503644,0.6413,2831.3,2829.8,0.5553]
[1763997503859,0.1829,2831.3,2829.8,0.4553]
[1763997504061,0.233,2831.2,2830.1,0.1]
[1763997504767,0.233,2831.2,2830.1,0.5553]
[1763997505178,0.233,2831.2,2829.6,0.4553]
[1763997505179,0.4584,2831.1,2829.6,0.4553]
[1763997505345,0.4584,2831.1,2829.8,0.1]
[1763997505765,0.4584,2831.1,2829.4,0.1]
[1763997505990,0.405504,2831.0,2829.4,0.1]
[1763997506452,0.405504,2830.8,2829.4,0.1]
[1763997506652,0.405504,2830.8,2828.9,0.001]
[1763997506902,0.405504,2830.6,2828.9,0.001]
[1763997507249,0.405504,2830.4,2828.9,0.001]
[1763997507557,0.95859411,2830.3,2828.9,0.001]
[1763997507747,0.405504,2830.2,2828.9,0.001]
[1763997507945,2.011271,2829.9,2828.9,0.001]
[1763997508197,0.1829,2829.0,2828.9,0.001]
[1763997508353,0.233,2829.0,2828.9,0.001]
[1763997509489,0.405504,2830.0,2828.9,0.001]
[1763997509673,0.405504,2830.0,2828.9,0.4563]
[1763997509988,0.233,2829.9,2828.9,0.001]
[1763997510161,0.4584,2830.1,2828.9,0.4563]
[1763997510363,0.4584,2830.1,2828.9,0.001]
[1763997510545,0.233,2830.0,2828.9,0.101]
[1763997510947,0.233,2830.0,2828.9,0.001]
[1763997510948,0.863904,2829.9,2828.9,0.001]
[1763997511261,0.72559411,2829.8,2828.9,0.001]
[1763997511461,0.405504,2829.6,2828.9,0.001]
[1763997511864,0.405504,2829.4,2828.9,0.001]
[1763997512058,0.4584,2829.3,2828.9,0.001]
[1763997512276,0.233,2829.2,2828.9,0.001]
[1763997512460,0.405504,2829.6,2828.9,0.001]
[1763997512658,0.65558788,2829.6,2828.9,0.001]
[1763997512900,0.6914,2829.5,2828.9,0.001]
[1763997513107,0.405504,2829.4,2828.9,0.001]
[1763997513250,0.4584,2829.9,2828.9,0.001]
[1763997513986,0.233,2829.8,2828.9,0.001]
[1763997514287,0.638504,2829.8,2828.9,0.001]
[1763997514486,1.096904,2829.8,2828.9,0.001]
[1763997514795,0.863904,2829.7,2828.9,0.001]
[1763997515147,0.4584,2829.6,2828.9,0.001]
[1763997515654,0.405504,2829.5,2828.9,0.001]
[1763997516066,0.405504,2829.4,2828.9,0.001]
[1763997516388,0.6413,2830.2,2828.9,0.4563]
[1763997516550,0.233,2829.7,2828.9,0.001]
[1763997517490,0.233,2829.9,2829.0,0.5944]
[1763997517792,0.2322,2829.9,2829.0,0.5944]
[1763997518154,0.1829,2830.6,2829.3,0.1]
[1763997518367,0.233,2830.5,2829.2,0.1]
[1763997518861,0.4584,2830.6,2829.2,0.5553]
[1763997519065,0.4584,2831.2,2829.2,0.4553]
[1763997519401,0.233,2831.1,2829.7,0.1]
[1763997519601,0.4584,2831.0,2829.2,0.5553]
[1763997519902,0.638504,2830.9,2829.2,0.5553]
[1763997520188,0.233,2830.8,2829.2,0.5553]
[1763997520388,0.405504,2830.7,2829.2,0.4553]
[1763997520551,0.863904,2830.7,2829.0,0.1391]
[1763997520985,0.405504,2830.5,2829.0,0.1391]
[1763997521187,0.405504,2830.5,2828.9,0.4563]
[1763997521188,1.13109811,2830.1,2828.9,0.001]
[1763997521395,0.405504,2829.9,2828.9,0.001]
[1763997521775,0.405504,2829.7,2828.9,0.001]
[1763997522209,0.405504,2829.5,2828.9,0.001]
[1763997522663,0.405504,2829.3,2828.9,0.001]
[1763997522871,0.233,2829.2,2828.9,0.001]
[1763997523264,0.6914,2829.2,2828.9,0.001]
[1763997523466,0.90849411,2829.8,2828.9,0.001]
[1763997523467,0.233,2829.1,2828.9,0.001]
[1763997523669,0.233,2829.0,2828.9,0.001]
[1763997524197,0.6914,2829.0,2828.9,0.001]
[1763997524489,1.096904,2829.0,2828.9,0.001]
[1763997525394,4.11024732,2829.0,2828.9,0.001]
[1763997525694,3.20453652,2829.0,2828.9,0.001]
[1763997525990,2.68457943,2829.0,2828.9,0.001]
[1763997526972,6.94827943,2829.0,2828.9,0.001]
[1763997527172,2.68457943,2829.0,2828.9,0.001]
[1763997527507,0.405504,2828.8,2828.6,0.001]
[1763997527674,0.591404,2828.7,2828.6,0.001]
[1763997527878,0.1859,2828.7,2828.6,0.001]
[1763997528061,0.233,2828.7,2828.6,0.001]
[1763997528591,0.233,2828.7,2828.3,0.001]
[1763997528592,8.24890921,2828.7,2828.3,0.001]
[1763997528896,0.405504,2828.5,2828.3,0.001]
[1763997529103,1.40349411,2829.1,2828.3,0.001]
[1763997529271,0.405504,2829.0,2828.3,0.001]
[1763997529455,0.1859,2829.1,2828.3,0.001]
[1763997529672,0.233,2829.0,2828.3,0.001]
[1763997529903,0.233,2828.9,2828.3,0.001]
[1763997530705,0.1859,2829.1,2828.3,0.001]
[1763997530907,0.4609,2829.5,2828.3,0.001]
[1763997530908,0.233,2829.0,2828.3,0.001]
[1763997531093,0.233,2828.9,2828.3,0.4593]
[1763997531298,8.54255967,2830.1,2828.3,0.5593]
[1763997531494,1.25946495,2830.3,2828.4,4.537279]
[1763997531495,0.55472931,2830.3,2828.4,4.537279]
[1763997531672,0.55472931,2830.3,2828.5,0.4996579]
[1763997531673,0.6939,2830.2,2828.5,0.4996579]
[1763997531872,0.72559411,2830.0,2828.5,0.4583]
[1763997532068,0.6439,2829.9,2828.5,0.4583]
[1763997532309,0.6439,2829.9,2828.3,0.001]
[1763997532609,0.405504,2829.7,2828.3,0.001]
[1763997532808,0.233,2829.6,2828.4,0.4583]
[1763997534009,0.233,2829.5,2828.5,0.1]
[1763997534376,0.233,2829.5,2828.6,0.4583]
[1763997534577,0.4609,2830.3,2829.4,0.1391]
[1763997534773,0.4609,2830.3,2828.6,0.4583]
[1763997534774,0.233,2830.2,2828.6,0.4583]
[1763997535212,0.4609,2830.3,2828.7,0.1]
[1763997535412,0.002,2829.6,2828.7,0.1]
[1763997535612,0.233,2829.5,2828.8,0.4583]
[1763997536501,0.233,2829.4,2828.8,0.4583]
[1763997536699,0.233,2829.4,2828.8,0.5583]
[1763997537014,0.233,2829.4,2828.8,0.4583]
[1763997537228,0.233,2829.4,2828.3,0.001]
[1763997537431,0.002,2829.6,2829.3,0.1391]
[1763997537936,0.002,2829.6,2829.4,0.5583]
[1763997538622,0.002,2829.6,2829.0,0.1391]
[1763997539106,0.002,2829.6,2829.1,0.4583]
[1763997539107,0.233,2829.5,2829.1,0.4583]
[1763997539306,0.235,2829.6,2829.0,0.1391]
[1763997539808,0.235,2829.6,2829.0,0.5974]
[1763997539999,0.002,2829.6,2829.0,0.6974]
[1763997540308,0.002,2829.9,2829.1,0.4583]
[1763997540499,0.002,2829.9,2829.3,0.1]
[1763997540696,0.002,2829.9,2829.1,0.4583]
[1763997541110,0.002,2829.9,2829.4,0.1]
[1763997541398,0.0012,2829.9,2829.1,3.99299301]
[1763997541625,0.002,2830.2,2829.7,0.405504]
[1763997541838,0.002,2830.2,2830.1,0.2606]
[1763997542231,0.002,2830.2,2830.1,0.7157]
[1763997542515,0.001,2830.2,2830.1,1.121204]
[1763997542719,0.001,2830.2,2830.1,8.67642915]
[1763997542918,0.001,2830.2,2830.1,11.36092872]
[1763997543144,0.001,2830.2,2830.1,5.76705868]
[1763997543435,0.001,2830.2,2830.1,8.17361915]
[1763997543636,0.001,2830.2,2830.1,7.50408715]
[1763997543931,0.127,2832.2,2831.4,0.1]
[1763997544150,0.127,2832.2,2831.1,0.4551]
[1763997544356,0.4609,2832.1,2830.5,0.4551]
[1763997544499,0.4609,2832.1,2830.6,0.1]
[1763997544854,0.4609,2832.1,2830.8,0.1]
[1763997545153,0.4609,2832.1,2830.5,0.1]
[1763997545452,0.4609,2832.1,2830.8,0.1]
[1763997545604,0.4609,2832.1,2830.6,0.1]
[1763997545803,0.002,2832.2,2831.2,0.1]
[1763997546301,0.002,2832.2,2831.3,0.4551]
[1763997546636,0.002,2832.2,2831.2,0.1]
[1763997546938,0.002,2832.2,2831.3,0.4551]
[1763997547123,0.002,2832.2,2831.5,0.1]
[1763997547298,0.002,2832.2,2831.0,0.860604]
[1763997547500,0.002,2832.2,2831.2,0.1]
[1763997547921,0.002,2832.2,2832.1,0.1472]
[1763997548128,0.002,2832.2,2831.3,0.5551]
[1763997548345,0.002,2832.2,2831.0,0.1472]
[1763997548500,0.002,2832.2,2831.0,0.2472]
[1763997548705,0.002,2832.2,2831.3,0.1]
[1763997549049,0.002,2832.2,2832.1,0.1472]
[1763997549212,0.002,2832.2,2831.6,0.1]
[1763997549543,0.002,2832.2,2832.1,0.1472]
[1763997549755,0.002,2832.2,2832.1,0.6023]
[1763997549914,0.002,2832.2,2832.1,0.7023]